Workbook

Sheet Chi phí
B3: Ngân sách sự kiện cho [Tên sự kiện]
H4: Chi phí
H6: Ước tính | I6: Thực tế
C7: Tổng chi phí | H7: =SUM(D14,D22,D28,D35,H14,H22,H27) -> 1,145.00 ₫ | I7: =SUM(E14,E22,E28,E35,I14,I22,I27) -> 395.00 ₫
C9: Hiện trường | D9: Ước tính | E9: Thực tế | G9: Đồ ăn uống nhẹ | H9: Ước tính | I9: Thực tế
C10: Phí phòng và hội trường | D10: 500.00 ₫ | E10: 250.00 ₫ | G10: Đồ ăn
C11: Nhân viên hiện trường | D11: 400.00 ₫ | E11: 50.00 ₫ | G11: Đồ uống
C12: Thiết bị | G12: Khăn trải bàn
C13: Bàn và ghế | G13: Nhân viên và tiền thưởng
C14: Tổng | D14: =SUBTOTAL(109,Bảng_1[Ước tính]) -> 900.00 ₫ | E14: =SUBTOTAL(109,Bảng_1[Thực tế]) -> 300.00 ₫ | G14: Tổng | H14: =SUBTOTAL(109,Bảng_5[Ước tính]) -> 0.00 ₫ | I14: =SUBTOTAL(109,Bảng_5[Thực tế]) -> 0.00 ₫
C16: Đồ trang trí | D16: Ước tính | E16: Thực tế | G16: Chương trình | H16: Ước tính | I16: Thực tế
C17: Hoa | D17: 200.00 ₫ | E17: 50.00 ₫ | G17: Người biểu diễn
C18: Nến | G18: Diễn giả
C19: Đèn | G19: Đi lại
C20: Bóng bay | G20: Khách sạn
C21: Vật dụng bằng giấy | G21: Khác
C22: Tổng | D22: =SUBTOTAL(109,Bảng_2[Ước tính]) -> 200.00 ₫ | E22: =SUBTOTAL(109,Bảng_2[Thực tế]) -> 50.00 ₫ | G22: Tổng | H22: =SUBTOTAL(109,Bảng_6[Ước tính]) -> 0.00 ₫ | I22: =SUBTOTAL(109,Bảng_6[Thực tế]) -> 0.00 ₫
C24: Quảng bá | D24: Ước tính | E24: Thực tế | G24: Giải thưởng | H24: Ước tính | I24: Thực tế
C25: Tác phẩm đồ họa | D25: 45.00 ₫ | E25: 45.00 ₫ | G25: Dải băng/Kỷ niệm chương/Cúp
C26: Sao chép/in | G26: Quà tặng
C27: Bưu phí | G27: Tổng | H27: =SUBTOTAL(109,Bảng_7[Ước tính]) -> 0.00 ₫ | I27: =SUBTOTAL(109,Bảng_7[Thực tế]) -> 0.00 ₫
C28: Tổng | D28: =SUBTOTAL(109,Bảng_3[Ước tính]) -> 45.00 ₫ | E28: =SUBTOTAL(109,Bảng_3[Thực tế]) -> 45.00 ₫
C30: Khác | D30: Ước tính | E30: Thực tế
C31: Điện thoại
C32: Đi lại
C33: Văn phòng phẩm
C34: Dịch vụ fax
C35: Tổng | D35: =SUBTOTAL(109,Bảng_4[Ước tính]) -> 0.00 ₫ | E35: =SUBTOTAL(109,Bảng_4[Thực tế]) -> 0.00 ₫

Sheet Thu nhập
B3: Ngân sách sự kiện cho [Tên sự kiện]
F4: Thu nhập
F6: Ước tính | G6: Thực tế
B7: Tổng thu nhập | F7: =SUM(F14,F21,F28,F36) -> 1,936.00 ₫ | G7: =SUM(G14,G21,G28,G36) -> 1,831.00 ₫
B9: Phí vào cửa
B10: Ước tính | C10: Thực tế | F10: Ước tính | G10: Thực tế
B11: 300 | C11: 278 | D11: Người lớn @ | E11: 5.00 ₫ | F11: =B11*E11 -> 1,500.00 ₫ | G11: =C11*E11 -> 1,390.00 ₫
B12: 197 | C12: 195 | D12: Trẻ em @ | E12: 2.00 ₫ | F12: =B12*E12 -> 394.00 ₫ | G12: =C12*E12 -> 390.00 ₫
B13: 42 | C13: 51 | D13: Khác @ | E13: 1.00 ₫ | F13: =B13*E13 -> 42.00 ₫ | G13: =C13*E13 -> 51.00 ₫
F14: =SUM(F11:F13) -> 1,936.00 ₫ | G14: =SUM(G11:G13) -> 1,831.00 ₫
B16: Quảng cáo trong chương trình
B17: Ước tính | C17: Thực tế | F17: Ước tính | G17: Thực tế
D18: Bìa @ | F18: =B18*E18 -> 0.00 ₫ | G18: =C18*E18 -> 0.00 ₫
D19: Nửa trang @ | F19: =B19*E19 -> 0.00 ₫ | G19: =C19*E19 -> 0.00 ₫
D20: Một phần tư trang @ | F20: =B20*E20 -> 0.00 ₫ | G20: =C20*E20 -> 0.00 ₫
F21: =SUM(F18:F20) -> 0.00 ₫ | G21: =SUM(G18:G20) -> 0.00 ₫
B23: Người tham gia triển lãm/nhà cung cấp
B24: Ước tính | C24: Thực tế | F24: Ước tính | G24: Thực tế
D25: Gian hàng lớn @ | F25: =B25*E25 -> 0.00 ₫ | G25: =C25*E25 -> 0.00 ₫
D26: Gian hàng trung bình @ | F26: =B26*E26 -> 0.00 ₫ | G26: =C26*E26 -> 0.00 ₫
D27: Gian hàng nhỏ @ | F27: =B27*E27 -> 0.00 ₫ | G27: =C27*E27 -> 0.00 ₫
F28: =SUM(F25:F27) -> 0.00 ₫ | G28: =SUM(G25:G27) -> 0.00 ₫
B30: Hàng bán ra
B31: Ước tính | C31: Thực tế | F31: Ước tính | G31: Thực tế
D32: Mặt hàng @ | F32: =B32*E32 -> 0.00 ₫ | G32: =C32*E32 -> 0.00 ₫
D33: Mặt hàng @ | F33: =B33*E33 -> 0.00 ₫ | G33: =C33*E33 -> 0.00 ₫
D34: Mặt hàng @ | F34: =B34*E34 -> 0.00 ₫ | G34: =C34*E34 -> 0.00 ₫
D35: Mặt hàng @ | F35: =B35*E35 -> 0.00 ₫ | G35: =C35*E35 -> 0.00 ₫
F36: =SUM(F32:F35) -> 0.00 ₫ | G36: =SUM(G32:G35) -> 0.00 ₫

Sheet Tóm tắt
B3: Ngân sách sự kiện cho [Tên sự kiện]
F4: Tóm tắt lãi-lỗ
F6: Ước tính | G6: Thực tế
B7: Tổng thu nhập | F7: ='Thu nhập'!F7 -> 1,936.00 ₫ | G7: ='Thu nhập'!G7 -> 1,831.00 ₫
B8: Tổng chi phí | F8: ='Chi phí'!H7 -> 1,145.00 ₫ | G8: ='Chi phí'!I7 -> 395.00 ₫
B9: Tổng lãi (hoặc lỗ) | F9: =F7-F8 -> 791.00 ₫ | G9: =G7-G8 -> 1,436.00 ₫
